bitfinex/quotes_SOLUSD_20251115
["timestamp","ask_amount","ask_price","bid_price","bid_amount"]
[1763180845464,0.14216157,142.72,142.7,2.75514641]
[1763180846373,0.81216157,142.73,142.69,3.50514641]
[1763180846568,9.93098926,142.71,142.69,3.50514641]
[1763180846756,0.14216157,142.71,142.69,3.50514641]
[1763180846955,9.93098926,142.71,142.69,3.50514641]
[1763180847167,4.71082035,142.71,142.69,3.50514641]
[1763180847458,9.93098926,142.71,142.69,3.50514641]
[1763180847659,14.64180961,142.71,142.69,2.85514641]
[1763180847862,0.14216157,142.73,142.69,0.1]
[1763180848048,10.60098926,142.7,142.69,0.1]
[1763180848350,15.31085293,142.7,142.69,0.1]
[1763180848959,14.64085293,142.7,142.69,0.1]
[1763180849353,18.06599934,142.7,142.69,0.1]
[1763180849668,46.61838465,142.7,142.68,0.1]
[1763180849870,18.02599934,142.69,142.68,0.1]
[1763180850170,73.92718465,142.69,142.68,0.1]
[1763180850349,79.49299753,142.69,142.68,0.1]
[1763180851750,22.6512,142.67,142.66,0.1]
[1763180851969,40.67719934,142.67,142.66,0.1]
[1763180852470,15.27085293,142.67,142.66,0.1]
[1763180852776,37.29205293,142.67,142.66,0.1]
[1763180853077,14.64085293,142.67,142.66,0.1]
[1763180853573,9.93098926,142.67,142.66,0.1]
[1763180853877,9.93098926,142.67,142.66,3.50514641]
[1763180854379,9.93098926,142.67,142.66,0.75]
[1763180855653,9.78882769,142.67,142.66,3.50514641]
[1763180858485,9.78882769,142.71,142.66,3.50514641]
[1763180858647,9.78882769,142.71,142.69,2.75514641]
[1763180859056,9.93098926,142.71,142.7,3.40514641]
[1763180859880,0.14216157,142.7,142.67,3.40514641]
[1763180861876,0.14216157,142.7,142.68,3.40514641]
[1763180863494,0.14216157,142.7,142.69,3.43514641]
[1763180864284,0.14216157,142.7,142.69,0.68]
[1763180864666,0.14216157,142.7,142.66,0.1]
[1763180864860,0.14216157,142.68,142.66,2.54467199]
[1763180865061,0.14216157,142.68,142.67,1.76467199]
[1763180865358,0.14216157,142.68,142.66,0.78]
[1763180865359,0.77216157,142.68,142.66,0.1]
[1763180866773,9.93098926,142.68,142.66,0.1]
[1763180867095,14.61755092,142.68,142.66,0.1]
[1763180867406,9.93098926,142.68,142.67,1.76467199]
[1763180867714,9.93098926,142.68,142.66,0.1]
[1763180867715,0.14216157,142.68,142.66,0.1]
[1763180867992,9.93098926,142.67,142.66,0.78]
[1763180868192,9.93098926,142.67,142.66,2.54467199]
[1763180868402,9.93098926,142.67,142.66,0.78]
[1763180869989,9.93098926,142.67,142.66,2.54467199]
[1763180869990,9.78882769,142.67,142.66,2.54467199]
[1763180870289,9.78882769,142.67,142.66,0.78]
[1763180870593,9.78882769,142.67,142.66,2.54467199]
[1763180871097,9.93098926,142.72,142.66,2.54467199]
[1763180871298,9.78882769,142.7,142.69,1.76467199]
[1763180871783,14.62118463,142.72,142.69,2.44467199]
[1763180872165,14.62118463,142.72,142.7,0.68]
[1763180872361,4.83235694,142.71,142.7,0.68]
[1763180872566,9.78882769,142.7,142.69,2.44467199]
[1763180873090,0.14216157,142.71,142.69,2.44467199]
[1763180873392,9.78882769,142.7,142.69,0.76467199]
[1763180873595,0.14216157,142.71,142.69,0.76467199]
[1763180873796,9.78882769,142.7,142.69,1.44467199]
[1763180874294,0.14216157,142.71,142.69,1.44467199]
[1763180874503,9.78882769,142.7,142.69,1.44467199]
[1763180874880,0.14216157,142.71,142.69,1.44467199]
[1763180875087,9.78882769,142.7,142.69,1.44467199]
[1763180875695,0.14216157,142.71,142.69,2.44467199]
[1763180875888,9.78882769,142.7,142.69,2.44467199]
[1763180876098,9.78882769,142.72,142.69,1.76467199]
[1763180876300,14.48036207,142.72,142.7,2.44467199]
[1763180876988,14.48036207,142.72,142.7,0.68]
[1763180877387,14.48036207,142.72,142.7,2.44467199]
[1763180878997,14.48036207,142.72,142.7,0.68]
[1763180879195,14.48036207,142.72,142.68,7.05868796]
[1763180879371,4.69153438,142.71,142.69,0.68]
[1763180879775,9.78882769,142.7,142.69,0.68]
[1763180880202,0.14216157,142.71,142.69,0.68]
[1763180881474,9.78882769,142.7,142.69,0.68]
[1763180882002,0.14216157,142.71,142.69,0.68]
[1763180882202,9.78882769,142.7,142.69,0.68]
[1763180882402,15.11728164,142.7,142.66,0.78]
[1763180882610,14.48728164,142.69,142.68,1.76467199]
[1763180882902,14.62944321,142.69,142.68,1.76467199]
[1763180883818,9.78882769,142.68,142.67,1.76467199]
[1763180884119,0.14216157,142.69,142.67,1.76467199]
[1763180884284,0.14216157,142.69,142.68,2.44467199]
[1763180884480,4.84599035,142.69,142.67,1.76467199]
[1763180884683,4.84599035,142.69,142.66,1.86467199]
[1763180884684,0.14216157,142.67,142.66,1.86467199]
[1763180884901,4.84565277,142.67,142.66,1.86467199]
[1763180885108,4.84565277,142.67,142.66,2.54467199]
[1763180885308,4.7034912,142.67,142.66,2.54467199]
[1763180885512,14.49396389,142.69,142.66,2.54467199]
[1763180885809,9.78882769,142.69,142.67,2.44467199]
[1763180886001,9.78882769,142.69,142.67,1.76467199]
[1763180886392,9.78882769,142.69,142.68,1.76467199]
[1763180886596,4.70711547,142.69,142.68,1.76467199]
[1763180886908,4.70711547,142.69,142.68,2.44467199]
[1763180887704,104.3,142.7,142.68,2.44467199]
[1763180888009,0.14216157,142.71,142.69,2.44467199]
[1763180888213,14.49630601,142.7,142.69,0.68]
[1763180890005,0.14216157,142.69,142.66,0.78]
[1763180890315,4.70747832,142.68,142.66,2.54467199]
[1763180890613,9.78882769,142.68,142.66,2.54467199]
[1763180890916,0.63,142.7,142.66,2.54467199]
[1763180891122,9.78882769,142.68,142.66,2.54467199]
[1763180891728,0.14216157,142.69,142.67,2.42467199]
[1763180891892,4.70841675,142.68,142.67,2.42467199]
[1763180893294,4.70841675,142.68,142.67,0.66]
[1763180893940,4.70841675,142.68,142.66,1.86467199]
[1763180894112,0.63,142.68,142.66,0.1]
[1763180894301,4.85047504,142.67,142.66,2.55467199]
[1763180894494,0.14216157,142.67,142.66,0.1]
[1763180894732,4.85047204,142.67,142.66,0.1]
[1763180895031,4.85047204,142.67,142.66,0.79]
[1763180896156,4.70831047,142.67,142.66,0.79]
[1763180896325,14.49713816,142.67,142.66,2.55467199]
[1763180896524,14.63929973,142.67,142.66,0.1]
[1763180896844,15.26929973,142.67,142.66,0.1]
[1763180897043,14.63929973,142.67,142.66,0.1]
[1763180898141,14.49713816,142.67,142.66,2.55467199]
[1763180898341,4.70831047,142.67,142.66,0.79]
[1763180898537,4.70831047,142.67,142.66,2.55467199]
[1763180899063,5.48047204,142.67,142.66,0.1]
[1763180899228,4.85047204,142.67,142.66,0.1]
[1763180899630,5.48047204,142.67,142.66,0.1]
[1763180900265,4.85047204,142.67,142.66,0.1]
[1763180901241,9.93098926,142.62,142.61,0.1]
[1763180901530,32.58218926,142.6,142.59,0.1]
[1763180901838,41.34984371,142.6,142.59,0.1]
[1763180902346,47.20875189,142.6,142.59,0.1]
[1763180902652,41.34984371,142.6,142.59,0.1]
[1763180902846,39.58517172,142.6,142.59,0.1]
[1763180903151,41.34984371,142.6,142.59,0.1]
[1763180905526,47.20875189,142.6,142.59,0.1]
[1763180905728,52.50276786,142.6,142.59,0.1]
[1763180905929,46.64385968,142.6,142.59,0.1]
[1763180907041,37.29049973,142.6,142.59,0.1]
[1763180907358,39.05517172,142.6,142.59,0.1]
[1763180907850,39.58517172,142.6,142.59,0.1]
[1763180910758,41.34984371,142.6,142.59,0.1]
[1763180911254,39.58517172,142.6,142.59,0.1]
[1763180911644,41.34984371,142.6,142.59,0.1]
[1763180911844,37.82049973,142.6,142.59,0.1]
[1763180912045,46.64385968,142.6,142.59,0.1]
[1763180912361,41.93554921,142.6,142.59,0.1]
[1763180912859,41.40554921,142.6,142.59,0.1]
[1763180913548,34.34686125,142.6,142.59,0.1]
[1763180914658,40.77403967,142.6,142.59,0.1]
[1763180914861,37.24469569,142.6,142.59,0.1]
[1763180915061,46.06805564,142.6,142.59,0.1]
[1763180916277,41.40554921,142.6,142.59,0.1]
[1763180916567,37.24335952,142.6,142.59,0.1]
[1763180916858,46.06671947,142.6,142.59,0.1]
[1763180918447,9.93098926,142.59,142.57,0.1]
[1763180918667,16.88683151,142.59,142.57,0.1]
[1763180920461,19.69927657,142.59,142.57,0.1]
[1763180922054,19.16927657,142.59,142.57,0.1]
[1763180922454,19.69927657,142.59,142.57,0.1]
[1763180922667,69.69927657,142.59,142.57,0.1]
[1763180923162,121.46394856,142.59,142.57,0.1]
[1763180923370,23.94551947,142.58,142.57,0.1]
[1763180924859,16.35683151,142.58,142.57,0.1]
[1763180925369,39.53803151,142.58,142.57,0.1]
[1763180925550,18.6515035,142.58,142.57,0.1]
[1763180925755,16.88683151,142.58,142.57,0.1]
[1763180926971,17.8856171,142.58,142.57,0.1]
[1763180927467,17.3556171,142.58,142.57,0.1]
[1763180928264,14.59215952,142.58,142.57,0.1]
[1763180928471,17.3556171,142.58,142.57,0.1]
[1763180928953,14.59215952,142.58,142.57,0.1]
[1763180929156,17.3556171,142.58,142.57,0.1]
[1763180929951,40.0068171,142.58,142.57,0.1]
[1763180939485,45.86572528,142.58,142.57,0.1]
[1763180942664,13.87215952,142.58,142.57,3.55345758]
[1763180944890,13.72999795,142.58,142.57,3.55345758]
[1763180945096,3.94117026,142.58,142.57,3.55345758]
[1763180946097,9.78882769,142.61,142.57,10.56755196]
[1763180946266,9.78882769,142.61,142.6,2.76345758]
[1763180946468,9.93098926,142.63,142.6,2.76345758]
[1763180946668,9.93098926,142.63,142.62,2.76345758]
[1763180947077,9.93098926,142.63,142.62,3.45345758]
[1763180947495,9.93098926,142.63,142.62,0.69]
[1763180947792,15.78989744,142.63,142.62,0.69]
[1763180948086,9.93098926,142.63,142.62,0.69]
[1763180948302,0.14216157,142.63,142.62,0.69]
[1763180948982,9.93098926,142.65,142.62,3.45345758]
[1763180949367,9.93098926,142.65,142.63,0.69]
[1763180949567,114.23098926,142.65,142.63,0.69]
[1763180950097,0.65,142.64,142.59,0.71]
[1763180950400,116.99444684,142.65,142.6,3.47345758]
[1763180950401,0.14216157,142.61,142.6,3.47345758]
[1763180950692,9.78882769,142.62,142.6,3.47345758]
[1763180950876,9.93098926,142.62,142.61,0.71]
[1763180951272,9.93098926,142.62,142.61,3.47345758]
[1763180951677,9.78882769,142.62,142.61,3.47345758]
[1763180951879,9.78882769,142.62,142.61,0.71]
[1763180952774,9.93098926,142.62,142.61,0.71]
[1763180954701,14.6207098,142.62,142.61,0.71]
[1763180954896,9.93098926,142.62,142.61,0.71]
[1763180956802,14.61958382,142.62,142.61,0.71]
[1763180957403,9.93098926,142.62,142.61,0.71]
[1763180961312,0.14216157,142.61,142.59,3.48345758]
[1763180961489,0.14216157,142.61,142.6,0.72]
[1763180971329,0.14216157,142.58,142.57,0.1]
[1763180971514,12.69444684,142.58,142.57,0.1]
[1763180971812,13.41444684,142.58,142.57,0.1]
[1763180972725,16.17790442,142.58,142.57,0.1]
[1763180974014,32.58218926,142.56,142.55,0.1]
[1763180974194,42.77668965,142.56,142.55,0.1]
[1763180974390,43.49668965,142.56,142.55,0.1]
[1763180975019,147.79668965,142.56,142.55,0.1]
[1763180978725,40.73323207,142.56,142.55,0.1]
[1763180983133,40.73323207,142.56,142.54,0.1]
[1763180983134,50.0,142.55,142.54,0.1]
[1763180983424,9.93098926,142.48,142.44,0.81]
[1763180983629,20.11797431,142.48,142.44,0.1]
[1763180983808,20.83797431,142.48,142.44,0.1]
[1763180984007,16.17790442,142.48,142.44,0.1]
[1763180984609,20.82741675,142.48,142.44,0.1]
[1763180984809,18.06395917,142.48,142.44,0.81]
[1763180985006,13.41444684,142.48,142.44,0.81]
[1763180987633,16.17790442,142.48,142.44,0.81]
[1763180988135,13.41444684,142.48,142.44,0.81]
[1763180989015,12.42163471,142.48,142.44,0.81]
[1763180992732,9.93098926,142.48,142.47,0.81]
[1763180992920,0.14216157,142.48,142.47,0.81]
[1763180993524,9.93098926,142.5,142.47,0.81]
[1763180998239,154.3,142.54,142.48,1.77064545]
[1763180998448,9.93098926,142.5,142.48,1.77064545]
[1763180998622,9.93098926,142.5,142.49,0.71]
[1763180998820,9.78882769,142.52,142.49,0.71]
[1763180999018,9.93098926,142.52,142.49,0.71]
[1763180999218,11.70163471,142.52,142.49,0.71]
[1763181000337,9.93098926,142.52,142.49,0.71]
[1763181000843,9.93098926,142.52,142.49,2.48064545]
[1763181001248,9.93098926,142.52,142.5,0.71]
[1763181006563,9.93098926,142.52,142.38,7.1825818]
[1763181006564,50.0,142.46,142.38,7.1825818]
[1763181006760,9.93098926,142.37,142.32,0.1]
[1763181007065,9.93098926,142.34,142.32,0.81]
[1763181007246,9.78882769,142.34,142.33,4.37996366]
[1763181007834,9.93098926,142.38,142.33,6.15060911]
[1763181008064,0.14216157,142.35,142.34,0.71]
[1763181009338,9.93098926,142.34,142.33,3.66996366]
[1763181009536,11.70163471,142.34,142.33,3.66996366]
[1763181010036,15.37159837,142.34,142.33,3.66996366]
[1763181010265,0.14216157,142.33,142.32,0.1]
[1763181010462,11.70163471,142.33,142.32,0.81]
[1763181011144,11.70163471,142.33,142.32,0.1]
[1763181011462,25.81450143,142.33,142.32,0.1]
[1763181012158,10.48098926,142.33,142.32,0.1]
[1763181012352,9.93098926,142.31,142.28,0.65]
[1763181012750,22.6512,142.36,142.29,1.77064545]
[1763181012934,0.14216157,142.33,142.29,1.77064545]
[1763181013139,0.14216157,142.33,142.3,0.71]
[1763181015762,7.0825818,142.35,142.3,0.71]
[1763181015763,9.93098926,142.35,142.3,0.71]
[1763181016064,0.14216157,142.35,142.32,1.77064545]
[1763181016362,1.77064545,142.41,142.34,1.77064545]
[1763181016663,50.0,142.43,142.33,0.71]
[1763181016664,0.14216157,142.4,142.33,0.71]
[1763181016876,0.14216157,142.4,142.35,1.77064545]
[1763181017172,9.93098926,142.4,142.35,1.77064545]
[1763181017345,9.93098926,142.4,142.36,0.71]
[1763181018658,9.93098926,142.4,142.36,2.48064545]
[1763181019060,9.93098926,142.4,142.37,0.71]
[1763181019263,9.93098926,142.4,142.37,2.48064545]
[1763181019464,9.93098926,142.42,142.37,2.48064545]
[1763181019662,9.93098926,142.42,142.38,0.71]
[1763181019882,14.56319842,142.42,142.38,0.71]
[1763181020057,9.93098926,142.42,142.38,2.48064545]
[1763181020450,9.93098926,142.42,142.39,0.71]
[1763181021780,1.77064545,142.41,142.39,0.71]
[1763181021962,1.77064545,142.41,142.32,29.7337818]
[1763181021963,9.93098926,142.4,142.32,29.7337818]
[1763181022145,9.93098926,142.4,142.37,0.71]
[1763181023060,9.93098926,142.41,142.37,0.71]
[1763181024677,16.338853,142.41,142.37,0.71]
[1763181024843,11.70163471,142.41,142.37,0.71]
[1763181025576,0.14216157,142.37,142.27,7.02887513]
[1763181025764,9.93098926,142.37,142.28,7.7925818]
[1763181025966,9.93098926,142.37,142.32,1.77064545]
[1763181026475,9.93098926,142.37,142.33,0.71]
[1763181026666,0.14216157,142.38,142.33,2.48064545]
[1763181027067,0.14216157,142.38,142.34,0.71]
[1763181029380,1.91280702,142.38,142.34,0.71]
[1763181029677,0.14216157,142.36,142.35,0.71]
[1763181029891,128.72184545,142.4,142.35,2.48064545]
[1763181030090,9.93098926,142.39,142.35,2.48064545]
[1763181030260,9.93098926,142.39,142.36,0.71]
[1763181031293,9.93098926,142.39,142.36,2.48064545]
[1763181031684,9.93098926,142.39,142.37,0.71]
[1763181033470,9.93098926,142.39,142.31,7.02674603]
[1763181033680,0.14216157,142.38,142.35,1.77064545]
[1763181033970,9.78882769,142.39,142.36,0.71]
[1763181035387,1.91280702,142.38,142.35,0.71]
[1763181035906,0.14216157,142.38,142.34,0.71]
[1763181036070,0.69216157,142.38,142.34,0.71]
[1763181036789,0.14216157,142.38,142.34,0.71]
[1763181041181,0.14216157,142.38,142.35,1.77064545]
[1763181041383,9.93098926,142.4,142.37,1.77064545]
[1763181041886,9.93098926,142.4,142.38,0.71]
[1763181042087,9.93098926,142.4,142.37,0.71]
[1763181043090,9.93098926,142.4,142.37,2.48064545]
[1763181043507,9.93098926,142.4,142.38,0.72]
[1763181047610,50.0,142.36,142.31,0.72]
[1763181047791,1.77064545,142.36,142.31,2.49064545]
[1763181047988,9.93098926,142.35,142.31,2.49064545]
[1763181048185,14.60399626,142.35,142.32,0.72]
[1763181048384,9.93098926,142.35,142.32,0.72]
[1763181048817,14.60399833,142.35,142.32,0.72]
[1763181049494,17.37480929,142.35,142.32,0.72]
[1763181049690,9.93098926,142.33,142.32,0.72]
[1763181050003,0.14216157,142.33,142.32,0.72]
[1763181051290,4.81587738,142.33,142.32,0.72]
[1763181055007,14.60470507,142.33,142.32,0.72]
[1763181058422,9.93098926,142.33,142.32,0.72]
[1763181062850,0.14216157,142.31,142.27,0.72]
[1763181063005,9.93098926,142.29,142.27,0.72]
[1763181063303,9.78882769,142.3,142.27,3.49081096]
[1763181063703,9.78882769,142.3,142.28,0.72]
[1763181064207,0.14216157,142.29,142.28,0.72]
[1763181064735,0.14216157,142.27,142.24,3.49081096]
[1763181065028,0.14216157,142.27,142.25,3.49081096]
[1763181065526,0.14216157,142.27,142.26,3.49081096]
[1763181065731,2.77081096,142.33,142.26,3.49081096]
[1763181065920,14.61465333,142.32,142.3,2.77081096]
[1763181066128,0.14216157,142.32,142.3,2.77081096]
[1763181066427,4.82589597,142.32,142.3,3.49081096]
[1763181066728,0.14216157,142.32,142.3,0.72]
[1763181066919,4.82463526,142.32,142.3,0.72]
[1763181068611,4.82463526,142.32,142.28,0.72]
[1763181068932,9.93098926,142.3,142.26,0.72]
[1763181069134,0.14216157,142.28,142.26,0.72]
[1763181070146,10.48098926,142.28,142.2,2.77081096]
[1763181070313,15.16346295,142.28,142.24,0.66]
[1763181070513,17.93427391,142.28,142.2,2.77081096]
[1763181070712,0.14216157,142.25,142.21,3.43081096]
[1763181070928,0.14216157,142.28,142.24,2.77081096]
[1763181071114,4.67846661,142.28,142.24,2.77081096]
[1763181071311,14.60945587,142.27,142.24,0.66]
[1763181071612,14.60945587,142.27,142.25,0.66]
[1763181071819,14.60945587,142.27,142.24,0.66]
[1763181072132,9.78882769,142.28,142.25,2.77081096]
[1763181072323,9.93098926,142.29,142.26,2.77081096]
[1763181072719,9.93098926,142.29,142.27,0.71]
[1763181073340,9.93098926,142.29,142.25,2.77081096]
[1763181073514,17.92531978,142.29,142.25,0.71]
[1763181073711,9.78882769,142.28,142.26,0.71]
[1763181073915,0.14216157,142.27,142.26,0.71]
[1763181075034,9.78882769,142.28,142.26,3.48081096]
[1763181075222,9.93098926,142.3,142.26,3.48081096]
[1763181075428,14.60483022,142.3,142.27,0.71]
[1763181076640,14.60483022,142.3,142.27,3.48081096]
[1763181077820,14.60483022,142.3,142.28,0.71]
[1763181078026,14.60483022,142.3,142.27,3.48081096]
[1763181079252,14.60483022,142.3,142.22,7.03132473]
[1763181079426,14.60483022,142.3,142.24,2.77081096]
[1763181079427,0.14216157,142.27,142.24,2.77081096]
[1763181079959,0.14216157,142.27,142.25,3.48081096]
[1763181080510,0.14216157,142.27,142.26,0.71]
[1763181084735,9.78882769,142.28,142.26,0.71]
[1763181084937,9.78882769,142.28,142.25,3.48081096]
[1763181085448,104.3,142.29,142.27,2.77081096]
[1763181085651,114.23098926,142.32,142.28,2.77081096]
[1763181085832,114.23098926,142.32,142.29,3.48081096]
[1763181086030,114.23098926,142.32,142.29,0.71]
[1763181086218,114.23098926,142.32,142.29,3.48081096]
[1763181086718,114.23098926,142.32,142.3,3.48081096]
[1763181087338,114.23098926,142.32,142.3,2.77081096]
[1763181088140,4.67342482,142.31,142.29,3.48081096]
[1763181088321,114.23098926,142.32,142.29,3.48081096]
[1763181090243,9.78882769,142.3,142.29,3.48081096]
[1763181090431,9.78882769,142.3,142.21,22.6512]
[1763181090637,14.46692798,142.31,142.3,0.71]
[1763181090844,9.78882769,142.31,142.3,3.48081096]
[1763181092242,9.78882769,142.32,142.3,3.48081096]
[1763181092543,4.82057863,142.33,142.31,3.48081096]
[1763181092544,4.67841706,142.33,142.31,3.48081096]
[1763181092740,14.46724475,142.33,142.32,2.77081096]
[1763181092928,14.46724475,142.33,142.32,3.48081096]
[1763181093243,4.67841706,142.34,142.32,3.48081096]
[1763181093433,14.46724475,142.35,142.33,3.48081096]
[1763181093620,14.46724475,142.35,142.34,2.77081096]
[1763181093826,14.46724475,142.35,142.34,3.48081096]
[1763181094953,9.78882769,142.35,142.34,3.48081096]
[1763181095144,14.46724475,142.35,142.34,3.48081096]
[1763181095841,9.78882769,142.35,142.34,3.48081096]
[1763181096046,9.78882769,142.35,142.32,2.77081096]
[1763181096047,9.93098926,142.31,142.27,0.71]
[1763181096243,2.77081096,142.3,142.26,3.48081096]
[1763181096433,0.14216157,142.28,142.24,2.77081096]
[1763181096751,2.91297253,142.26,142.22,2.77081096]
[1763181096949,8.14699493,142.26,142.22,2.77081096]
[1763181097131,8.14699493,142.26,142.21,3.48081096]
[1763181097327,9.78882769,142.24,142.21,3.48081096]
[1763181097647,9.78882769,142.24,142.22,0.71]
[1763181097824,4.68341426,142.25,142.23,2.77081096]
[1763181098022,0.14216157,142.27,142.24,2.77081096]
[1763181098230,0.14216157,142.27,142.22,0.71]
[1763181098231,9.78882769,142.25,142.22,0.71]
[1763181098528,14.4722078,142.25,142.22,0.71]
[1763181098842,0.14216157,142.26,142.22,0.71]
[1763181099047,9.93098926,142.26,142.22,0.71]
[1763181099826,0.14216157,142.26,142.22,8.43764939]
[1763181100234,0.14216157,142.26,142.23,0.71]
[1763181100642,4.82363991,142.26,142.23,0.71]
[1763181100845,0.14216157,142.26,142.23,0.71]
[1763181101042,4.82363991,142.26,142.23,0.71]
[1763181101236,0.14216157,142.26,142.23,0.71]
[1763181101636,4.82290541,142.26,142.23,0.71]
[1763181101831,0.14216157,142.26,142.23,0.71]
[1763181102044,4.82290541,142.26,142.23,0.71]
[1763181102256,9.93098926,142.26,142.23,0.71]
[1763181102553,4.68150334,142.26,142.23,8.43764939]
[1763181102862,9.93098926,142.28,142.23,8.43764939]
[1763181102863,4.68150334,142.27,142.23,8.43764939]
[1763181103031,17.65863865,142.28,142.24,0.72]
[1763181103350,4.6810861,142.27,142.24,0.72]
[1763181103562,22.6512,142.29,142.25,7.72764939]
[1763181103730,4.68138083,142.28,142.25,7.72764939]
[1763181103928,4.68138083,142.28,142.26,0.72]
[1763181104366,4.68288518,142.28,142.26,0.72]
[1763181104947,4.68288518,142.29,142.26,0.72]
[1763181105247,4.68288518,142.28,142.26,0.72]
[1763181105455,4.68288518,142.29,142.26,0.72]
[1763181105749,4.68288518,142.28,142.26,0.72]
[1763181105956,9.78882769,142.29,142.26,0.72]
[1763181106253,4.68274334,142.28,142.26,0.72]
[1763181106446,9.78882769,142.29,142.26,0.72]
[1763181106648,4.68476745,142.28,142.26,0.72]
[1763181106841,9.78882769,142.29,142.26,0.72]
[1763181107038,4.68476745,142.28,142.26,0.72]
[1763181107354,4.6873563,142.27,142.26,0.72]
[1763181119362,9.78882769,142.29,142.26,0.72]
[1763181119564,4.69663815,142.28,142.26,0.72]
[1763181119863,9.78882769,142.29,142.26,0.72]
[1763181120057,4.69646021,142.28,142.26,0.72]
[1763181120283,9.78882769,142.29,142.26,0.72]
[1763181120444,4.69663903,142.28,142.26,0.72]
[1763181120646,9.78882769,142.29,142.26,0.72]
[1763181120845,4.6968161,142.28,142.26,0.72]
[1763181121047,9.78882769,142.29,142.26,0.72]
[1763181121263,4.6968161,142.28,142.26,0.72]
[1763181121470,4.6968161,142.27,142.26,0.72]
[1763181122678,9.78882769,142.29,142.26,0.72]
[1763181122960,4.69747529,142.28,142.26,0.72]
[1763181123267,9.78882769,142.29,142.26,0.72]
[1763181123442,4.69693525,142.28,142.26,0.72]
[1763181123646,9.78882769,142.29,142.26,0.72]
[1763181123863,4.69643375,142.28,142.26,0.72]
[1763181124080,9.78882769,142.29,142.26,0.72]
[1763181124252,4.69643375,142.28,142.26,0.72]
[1763181124454,9.78882769,142.29,142.26,0.72]
[1763181124654,4.69643375,142.28,142.26,0.72]
[1763181124849,9.78882769,142.29,142.26,0.72]
[1763181125056,4.69713223,142.28,142.26,2.49466493]
[1763181125256,9.78882769,142.31,142.27,1.77466493]
[1763181125549,4.69763413,142.3,142.28,1.77466493]
[1763181125760,9.78882769,142.31,142.29,0.72]
[1763181126072,4.6978044,142.3,142.29,0.72]
[1763181126383,1.9168265,142.33,142.29,2.49466493]
[1763181126384,9.78882769,142.33,142.29,2.49466493]
[1763181126551,4.69765166,142.32,142.3,2.49466493]
[1763181126875,4.69765166,142.31,142.3,2.49466493]
[1763181127082,4.69765166,142.31,142.3,1.77466493]
[1763181127591,4.69765166,142.32,142.3,2.49466493]
[1763181127775,9.78882769,142.33,142.31,2.49466493]
[1763181128157,9.78882769,142.33,142.32,0.72]
[1763181128477,4.69659726,142.33,142.32,0.72]
[1763181128850,4.69659726,142.33,142.32,2.49466493]
[1763181130362,4.69659726,142.34,142.32,2.49466493]
[1763181130561,9.78882769,142.35,142.33,0.66]
[1763181130875,4.69399182,142.34,142.33,0.66]
[1763181131186,9.93098926,142.33,142.27,0.66]
[1763181131355,9.78882769,142.3,142.27,0.66]
[1763181131555,14.48281951,142.3,142.27,0.66]
[1763181132074,14.48281951,142.3,142.27,2.43466493]
[1763181132778,14.48281951,142.3,142.28,2.48466493]
[1763181132779,9.78882769,142.3,142.28,2.48466493]
[1763181133779,2.32466493,142.32,142.28,2.48466493]
[1763181133960,27.34285849,142.31,142.29,0.71]
[1763181134284,9.78882769,142.31,142.29,2.48466493]
[1763181134655,14.48046217,142.31,142.29,2.48466493]
[1763181134856,9.78882769,142.31,142.29,1.77466493]
[1763181135072,4.69163566,142.32,142.3,0.71]
[1763181135264,4.69163566,142.31,142.3,0.71]
[1763181135468,4.69163566,142.32,142.3,0.71]
[1763181135671,4.69163566,142.31,142.3,0.71]
[1763181135863,4.69163566,142.32,142.22,47.25967723]
[1763181136075,4.69163566,142.31,142.23,0.71]
[1763181136385,4.69163566,142.32,142.28,1.77466493]
[1763181136559,4.69163566,142.31,142.28,1.77466493]
[1763181136762,4.69163566,142.32,142.29,0.71]
[1763181137078,4.69163566,142.31,142.29,0.71]
[1763181137280,4.69163566,142.32,142.29,2.48466493]
[1763181137463,4.69163566,142.31,142.29,2.48466493]
[1763181137780,4.69163566,142.32,142.29,2.48466493]
[1763181137961,4.69163566,142.31,142.29,2.48466493]
[1763181138162,4.69163566,142.32,142.29,2.48466493]
[1763181138368,4.69163566,142.31,142.29,2.48466493]